fUST/lending_fUST_20250211
["ID","MTS","AMOUNT","RATE_DAILY","PERIOD"]
[352636680,1739212241818,-500.0,0.00011232,2]
[352636681,1739212241827,-500.0,0.00011232,2]
[352636682,1739212241837,-1134.73,0.00011232,2]
[352636683,1739212241846,-500.0,0.00011232,2]
[352636684,1739212241856,-1991.53,0.00011368,2]
[352636685,1739212241865,-1991.53,0.00011368,2]
[352636686,1739212241873,-500.0,0.00011369,2]
[352636687,1739212241883,-331.65,0.00011369,2]
[352636688,1739212241892,-500.0,0.00011369,2]
[352636689,1739212241902,-500.0,0.00011369,2]
[352636690,1739212241912,-184.0,0.00011369,2]
[352636691,1739212241922,-500.0,0.00011369,2]
[352636692,1739212241931,-500.0,0.00011369,2]
[352636693,1739212241941,-500.0,0.00011369,2]
[352636694,1739212241951,-500.0,0.00011369,2]
[352636695,1739212241960,-500.0,0.00011369,2]
[352636696,1739212241970,-477.24467584,0.00011369,2]
[352636697,1739212241979,-500.0,0.00011369,2]
[352636698,1739212241989,-500.0,0.00011369,2]
[352636699,1739212241998,-500.0,0.00011369,2]
[352636700,1739212242008,-500.0,0.00011369,2]
[352636701,1739212242018,-500.0,0.00011369,2]
[352636702,1739212242030,-500.0,0.00011369,2]
[352636703,1739212242040,-629.32,0.00011369,2]
[352636704,1739212242050,-500.0,0.00011369,2]
[352636705,1739212242059,-500.0,0.00011369,2]
[352636706,1739212242070,-500.0,0.00011369,2]
[352636707,1739212242079,-500.0,0.00011369,2]
[352636708,1739212242088,-500.0,0.00011369,2]
[352636709,1739212242098,-500.0,0.00011369,2]
[352636710,1739212242109,-500.0,0.00011369,2]
[352636711,1739212242118,-500.0,0.00011369,2]
[352636712,1739212242127,-500.0,0.00011369,2]
[352636713,1739212242137,-500.0,0.00011369,2]
[352636714,1739212242146,-500.0,0.00011369,2]
[352636715,1739212242156,-500.0,0.00011369,2]
[352636716,1739212242165,-500.0,0.00011369,2]
[352636717,1739212242175,-500.0,0.00011369,2]
[352636718,1739212242185,-500.0,0.00011369,2]
[352636719,1739212242195,-500.0,0.00011369,2]
[352636720,1739212242205,-500.0,0.00011369,2]
[352636721,1739212242215,-500.0,0.00011369,2]
[352636722,1739212242224,-13922.83,0.00011369,2]
[352636723,1739212242234,-986.15,0.00011369,2]
[352636724,1739212242243,-500.0,0.00011369,2]
[352636725,1739212242253,-500.0,0.00011369,2]
[352636726,1739212242263,-804.1,0.00011369,2]
[352636727,1739212242272,-597.06143944,0.00011369,2]
[352636728,1739212242282,-500.0,0.00011369,2]
[352636729,1739212242293,-500.0,0.00011369,2]
[352636730,1739212242303,-500.0,0.00011369,2]
[352636731,1739212242312,-500.0,0.00011369,2]
[352636732,1739212242321,-590.4,0.00011369,2]
[352636733,1739212242331,-5523.16,0.00011369,2]
[352636734,1739212242342,-500.0,0.00011369,2]
[352636735,1739212242351,-1492.81,0.00011369,2]
[352636736,1739212242361,-500.0,0.00011369,2]
[352636737,1739212242455,-500.0,0.00011369,2]
[352636738,1739212242464,-519.17,0.00011369,2]
[352636739,1739212242475,-500.0,0.00011369,2]
[352636740,1739212242486,-790.7,0.00011369,2]
[352636741,1739212242495,-1960.12,0.00011369,2]
[352636742,1739212242505,-500.0,0.00011369,2]
[352636743,1739212242515,-500.0,0.00011369,2]
[352636744,1739212242525,-500.0,0.00011369,2]
[352636745,1739212242535,-500.0,0.00011369,2]
[352636746,1739212242546,-500.0,0.00011369,2]
[352636747,1739212242556,-500.0,0.00011369,2]
[352636748,1739212242566,-7568.36,0.00011369,2]
[352636749,1739212242576,-500.0,0.00011369,2]
[352636750,1739212242585,-819.41,0.00011369,2]
[352636751,1739212242594,-500.0,0.00011369,2]
[352636752,1739212242604,-500.0,0.00011369,2]
[352636753,1739212242614,-442.95369119,0.00011369,2]
[352636754,1739212242624,-745.93,0.00011369,2]
[352636755,1739212242635,-500.0,0.00011369,2]
[352636756,1739212242645,-500.0,0.00011369,2]
[352636757,1739212242655,-500.0,0.00011369,2]
[352636758,1739212242666,-500.0,0.00011369,2]
[352636759,1739212242676,-500.0,0.00011369,2]
[352636760,1739212242687,-500.0,0.00011369,2]
[352636761,1739212242696,-500.0,0.00011369,2]
[352636762,1739212242707,-500.0,0.00011369,2]
[352636763,1739212242716,-500.0,0.00011369,2]
[352636764,1739212242727,-500.0,0.00011369,2]
[352636765,1739212242738,-500.0,0.00011369,2]
[352636766,1739212242748,-500.0,0.00011369,2]
[352636767,1739212242759,-500.0,0.00011369,2]
[352636768,1739212242769,-500.0,0.00011369,2]
[352636769,1739212242779,-500.0,0.00011369,2]
[352636770,1739212242793,-694.34,0.00011369,2]
[352636771,1739212242806,-1287.45,0.00011369,2]
[352636772,1739212242816,-500.0,0.00011369,2]
[352636773,1739212242825,-500.0,0.00011369,2]
[352636774,1739212242835,-500.0,0.00011369,2]
[352636775,1739212242846,-1421.92,0.00011369,2]
[352636776,1739212242856,-500.0,0.00011369,2]
[352636777,1739212242866,-500.0,0.00011369,2]
[352636778,1739212242876,-725.42,0.00011369,2]
[352636779,1739212242886,-519.1,0.00011369,2]
[352636780,1739212242896,-3345.59,0.00011369,2]
[352636781,1739212242905,-500.0,0.00011369,2]
[352636782,1739212242915,-500.0,0.00011369,2]
[352636783,1739212242925,-500.0,0.00011369,2]
[352636784,1739212242935,-500.0,0.00011369,2]
[352636785,1739212242945,-500.0,0.00011369,2]
[352636786,1739212242955,-500.0,0.00011369,2]
[352636787,1739212242965,-1562.27,0.00011369,2]
[352636789,1739212242975,-597.04,0.00011369,2]
[352636791,1739212242985,-500.0,0.00011369,2]
[352636793,1739212242996,-583.77995965,0.00011369,2]
[352636795,1739212243005,-1519.61,0.00011369,2]
[352636796,1739212243016,-500.0,0.00011369,2]
[352636797,1739212243031,-500.0,0.00011369,2]
[352636798,1739212243043,-500.0,0.00011369,2]
[352636799,1739212243054,-1134.73,0.00011369,2]
[352636800,1739212243064,-500.0,0.00011369,2]
[352636801,1739212243074,-375.18014921,0.00011456,2]
[352636802,1739212243084,-1991.53,0.00011505,2]
[352636803,1739212243094,-500.0,0.00011505,2]
[352636804,1739212243106,-500.0,0.00011506,2]
[352636806,1739212243116,-513.94,0.00011506,2]
[352636808,1739212243125,-500.0,0.00011506,2]
[352636809,1739212243135,-500.0,0.00011506,2]
[352636810,1739212243145,-436.44213026,0.00011506,2]
[352636811,1739212243155,-500.0,0.00011506,2]
[352636812,1739212243164,-500.0,0.00011506,2]
[352636813,1739212243174,-500.0,0.00011506,2]
[352636814,1739212243184,-500.0,0.00011506,2]
[352636816,1739212243194,-500.0,0.00011506,2]
[352636818,1739212243204,-629.32,0.00011506,2]
[352636819,1739212243213,-500.0,0.00011506,2]
[352636820,1739212243223,-500.0,0.00011506,2]
[352636821,1739212243233,-500.0,0.00011506,2]
[352636822,1739212243242,-500.0,0.00011506,2]
[352636824,1739212243251,-500.0,0.00011506,2]
[352636825,1739212243261,-500.0,0.00011506,2]
[352636826,1739212243271,-500.0,0.00011506,2]
[352636827,1739212243280,-500.0,0.00011506,2]
[352636828,1739212243291,-500.0,0.00011506,2]
[352636829,1739212243301,-500.0,0.00011506,2]
[352636830,1739212243311,-500.0,0.00011506,2]
[352636831,1739212243319,-500.0,0.00011506,2]
[352636832,1739212243330,-500.0,0.00011506,2]
[352636833,1739212243339,-417.39,0.00011506,2]
[352636834,1739212243349,-13922.83,0.00011506,2]
[352636835,1739212243359,-986.15,0.00011506,2]
[352636836,1739212243370,-500.0,0.00011506,2]
[352636837,1739212243380,-804.1,0.00011506,2]
[352636838,1739212243389,-500.0,0.00011506,2]
[352636839,1739212243399,-500.0,0.00011506,2]
[352636840,1739212243408,-590.4,0.00011506,2]
[352636841,1739212243418,-5523.16,0.00011506,2]
[352636842,1739212243427,-500.0,0.00011506,2]
[352636843,1739212243437,-1492.81,0.00011506,2]
[352636844,1739212243446,-500.0,0.00011506,2]
[352636845,1739212243456,-500.0,0.00011506,2]
[352636846,1739212243465,-519.17,0.00011506,2]
[352636847,1739212243475,-500.0,0.00011506,2]
[352636848,1739212243484,-790.7,0.00011506,2]
[352636849,1739212243494,-1960.12,0.00011506,2]
[352636850,1739212243504,-500.0,0.00011506,2]
[352636851,1739212243514,-500.0,0.00011506,2]
[352636852,1739212243523,-305.28065008,0.00011506,2]
[352636853,1739212243533,-500.0,0.00011506,2]
[352636854,1739212243544,-7568.36,0.00011506,2]
[352636855,1739212243554,-500.0,0.00011506,2]
[352636856,1739212243563,-819.41,0.00011506,2]
[352636857,1739212243573,-500.0,0.00011506,2]
[352636858,1739212243583,-745.93,0.00011506,2]
[352636859,1739212243593,-500.0,0.00011506,2]
[352636860,1739212243602,-500.0,0.00011506,2]
[352636861,1739212243612,-500.0,0.00011506,2]
[352636862,1739212243622,-500.0,0.00011506,2]
[352636863,1739212243631,-500.0,0.00011506,2]
[352636864,1739212243641,-500.0,0.00011506,2]
[352636865,1739212243650,-500.0,0.00011506,2]
[352636866,1739212243659,-500.0,0.00011506,2]
[352636867,1739212243669,-500.0,0.00011506,2]
[352636868,1739212243679,-500.0,0.00011506,2]
[352636869,1739212243689,-500.0,0.00011506,2]
[352636870,1739212243698,-694.34,0.00011506,2]
[352636871,1739212243707,-1287.45,0.00011506,2]
[352636872,1739212243717,-500.0,0.00011506,2]
[352636873,1739212243727,-500.0,0.00011506,2]
[352636874,1739212243736,-1421.92,0.00011506,2]
[352636875,1739212243746,-500.0,0.00011506,2]
[352636876,1739212243756,-725.42,0.00011506,2]
[352636878,1739212243765,-519.1,0.00011506,2]
[352636880,1739212243775,-3345.59,0.00011506,2]
[352636882,1739212243784,-500.0,0.00011506,2]
[352636883,1739212243795,-500.0,0.00011506,2]
[352636885,1739212243805,-500.0,0.00011506,2]
[352636886,1739212243814,-625.74921807,0.00011506,2]
[352636887,1739212243823,-500.0,0.00011506,2]
[352636889,1739212243833,-1562.27,0.00011506,2]
[352636891,1739212243842,-597.04,0.00011506,2]
[352636893,1739212243851,-311.1,0.00011506,2]
[352636894,1739212243861,-1519.61,0.00011506,2]
[352636896,1739212243870,-177.21,0.00011506,2]
[352636898,1739212243879,-500.0,0.00011506,2]
[352636899,1739212243889,-1134.73,0.00011506,2]
[352636900,1739212243898,-500.0,0.00011506,2]
[352636901,1739212243908,-1000.0,0.00011521,2]
[352636902,1739212243918,-500.0,0.00011521,2]
[352636903,1739212243928,-500.0,0.00011564,2]
[352636904,1739212243937,-211.32666311,0.00011564,2]
[352636905,1739212243947,-151.0,0.000116,2]
[352636906,1739212243956,-45619.26047126,0.00011614,2]
[352636907,1739212243965,-1991.53,0.00011642,2]
[352636908,1739212243974,-500.0,0.00011643,2]
[352636909,1739212243984,-500.0,0.00011643,2]
[352636910,1739212243993,-500.0,0.00011643,2]
[352636911,1739212244003,-248.1,0.00011643,2]
[352636912,1739212244012,-539.06,0.00011643,2]
[352636913,1739212244022,-500.0,0.00011643,2]
[352636914,1739212244034,-500.0,0.00011643,2]
[352636915,1739212244045,-500.0,0.00011643,2]
[352636916,1739212244055,-629.32,0.00011643,2]
[352636917,1739212244066,-500.0,0.00011643,2]
[352636918,1739212244076,-500.0,0.00011643,2]
[352636919,1739212244086,-500.0,0.00011643,2]
[352636920,1739212244095,-500.0,0.00011643,2]
[352636921,1739212244108,-500.0,0.00011643,2]
[352636922,1739212244118,-500.0,0.00011643,2]
[352636923,1739212244127,-500.0,0.00011643,2]
[352636924,1739212244136,-500.0,0.00011643,2]
[352636925,1739212244145,-500.0,0.00011643,2]
[352636926,1739212244155,-500.0,0.00011643,2]
[352636927,1739212244164,-336.72,0.00011643,2]
[352636928,1739212244173,-500.0,0.00011643,2]
[352636929,1739212244183,-13922.83,0.00011643,2]
[352636930,1739212244192,-986.15,0.00011643,2]
[352636931,1739212244202,-500.0,0.00011643,2]
[352636932,1739212244212,-804.1,0.00011643,2]
[352636933,1739212244221,-500.0,0.00011643,2]
[352636934,1739212244231,-365.145411,0.00011643,2]
[352636935,1739212244240,-590.4,0.00011643,2]
[352636936,1739212244250,-5523.16,0.00011643,2]
[352636937,1739212244259,-355.92,0.00011643,2]
[352636938,1739212244268,-1492.81,0.00011643,2]
[352636939,1739212244277,-500.0,0.00011643,2]
[352636940,1739212244286,-500.0,0.00011643,2]
[352636941,1739212244296,-519.17,0.00011643,2]
[352636942,1739212244306,-500.0,0.00011643,2]
[352636943,1739212244315,-790.7,0.00011643,2]
[352636944,1739212244399,-1960.12,0.00011643,2]
[352636945,1739212244410,-500.0,0.00011643,2]
[352636946,1739212244419,-500.0,0.00011643,2]
[352636947,1739212244429,-500.0,0.00011643,2]
[352636948,1739212244439,-7568.36,0.00011643,2]
[352636949,1739212244449,-500.0,0.00011643,2]
[352636950,1739212244458,-819.41,0.00011643,2]
[352636951,1739212244468,-745.93,0.00011643,2]
[352636952,1739212244477,-500.0,0.00011643,2]
[352636953,1739212244487,-500.0,0.00011643,2]
[352636954,1739212244496,-500.0,0.00011643,2]
[352636955,1739212244506,-500.0,0.00011643,2]
[352636956,1739212244516,-694.34,0.00011643,2]
[352636957,1739212244526,-1287.45,0.00011643,2]
[352636958,1739212244536,-500.0,0.00011643,2]
[352636959,1739212244547,-1421.92,0.00011643,2]
[352636960,1739212244557,-527.22,0.00011643,2]
[352636961,1739212244567,-725.42,0.00011643,2]
[352636962,1739212244577,-519.1,0.00011643,2]
[352636963,1739212244586,-3345.59,0.00011643,2]
[352636964,1739212244596,-500.0,0.00011643,2]
[352636965,1739212244605,-500.0,0.00011643,2]
[352636966,1739212244615,-500.0,0.00011643,2]
[352636967,1739212244625,-1562.27,0.00011643,2]
[352636968,1739212244635,-597.04,0.00011643,2]
[352636969,1739212244644,-1519.61,0.00011643,2]
[352636970,1739212244654,-500.0,0.00011643,2]
[352636971,1739212244664,-1134.73,0.00011643,2]
[352636972,1739212244674,-420.75366413,0.00011708,2]
[352636973,1739212244683,-500.0,0.00011728,2]
[352636974,1739212244693,-500.0,0.00011733,2]
[352636975,1739212244702,-500.0,0.00011733,2]
[352636976,1739212244712,-500.0,0.00011733,2]
[352636977,1739212244721,-271.10270288,0.00011733,2]
[352636978,1739212244731,-504.35160257,0.00011746,2]
[352636979,1739212244740,-500.0,0.00011747,2]
[352636980,1739212244750,-1991.53,0.00011779,2]
[352636981,1739212244759,-177.93,0.0001178,2]
[352636982,1739212244769,-500.0,0.0001178,2]
[352636983,1739212244778,-500.0,0.0001178,2]
[352636984,1739212244788,-500.0,0.0001178,2]
[352636985,1739212244798,-500.0,0.0001178,2]
[352636986,1739212244807,-562.02,0.0001178,2]
[352636987,1739212244817,-629.32,0.0001178,2]
[352636988,1739212244827,-221.45,0.0001178,2]
[352636989,1739212244836,-500.0,0.0001178,2]
[352636990,1739212244846,-500.0,0.0001178,2]
[352636991,1739212244856,-503.93,0.0001178,2]
[352636992,1739212244865,-500.0,0.0001178,2]
[352636993,1739212244875,-500.0,0.0001178,2]
[352636994,1739212244884,-500.0,0.0001178,2]
[352636995,1739212244894,-500.0,0.0001178,2]
[352636996,1739212244903,-500.0,0.0001178,2]
[352636997,1739212244913,-601.49,0.0001178,2]
[352636998,1739212244923,-11.01097733,0.0001178,2]
[352636999,1739212245254,-500.0,0.00010958,2]
[352637000,1739212245264,-581.33970971,0.00011094,2]
[352637001,1739212245273,-208.48320303,0.0001178,2]
[352637002,1739212245283,-13922.83,0.0001178,2]
[352637003,1739212245296,-500.0,0.0001178,2]
[352637004,1739212245306,-804.1,0.0001178,2]
[352637005,1739212245316,-500.0,0.0001178,2]
[352637006,1739212245327,-590.4,0.0001178,2]
[352637007,1739212245336,-5523.16,0.0001178,2]
[352637008,1739212245346,-1492.81,0.0001178,2]
[352637009,1739212245355,-500.0,0.0001178,2]
[352637010,1739212245365,-500.0,0.0001178,2]
[352637011,1739212245374,-519.17,0.0001178,2]
[352637012,1739212245384,-500.0,0.0001178,2]
[352637013,1739212245394,-250.96616911,0.0001178,2]
[352637014,1739212245406,-539.73383089,0.0001178,2]
[352637015,1739212245416,-1960.12,0.0001178,2]
[352637016,1739212245426,-500.0,0.0001178,2]
[352637017,1739212245436,-500.0,0.0001178,2]
[352637018,1739212245446,-500.0,0.0001178,2]
[352637019,1739212245456,-7568.36,0.0001178,2]
[352637020,1739212245466,-500.0,0.0001178,2]
[352637021,1739212245475,-819.41,0.0001178,2]
[352637022,1739212245485,-745.93,0.0001178,2]
[352637023,1739212245494,-500.0,0.0001178,2]
[352637024,1739212245504,-500.0,0.0001178,2]
[352637025,1739212245514,-694.34,0.0001178,2]
[352637026,1739212245523,-1287.45,0.0001178,2]
[352637027,1739212245533,-500.0,0.0001178,2]
[352637028,1739212245543,-1421.92,0.0001178,2]
[352637029,1739212245553,-725.42,0.0001178,2]
[352637030,1739212245564,-519.1,0.0001178,2]
[352637031,1739212245573,-3345.59,0.0001178,2]
[352637032,1739212245582,-500.0,0.0001178,2]
[352637033,1739212245592,-342.06,0.0001178,2]
[352637034,1739212245603,-500.0,0.0001178,2]
[352637035,1739212245612,-1562.27,0.0001178,2]
[352637036,1739212245622,-597.04,0.0001178,2]
[352637037,1739212245632,-1519.61,0.0001178,2]
[352637038,1739212245641,-500.0,0.0001178,2]
[352637039,1739212245651,-1134.73,0.0001178,2]
[352637040,1739212245661,-151.0,0.000118,2]
[352637041,1739212245671,-151.0,0.000119,2]
[352637042,1739212245680,-1991.53,0.00011916,2]
[352637043,1739212245690,-1991.53,0.00011916,2]
[352637044,1739212245700,-1991.53,0.00011916,2]
[352637045,1739212245710,-1991.53,0.00011916,2]
[352637046,1739212245720,-1991.72,0.00011916,2]
[352637047,1739212245730,-500.0,0.00011917,2]
[352637048,1739212245739,-500.0,0.00011917,2]
[352637049,1739212245750,-500.0,0.00011917,2]
[352637050,1739212245760,-500.0,0.00011917,2]
[352637051,1739212245771,-629.32,0.00011917,2]
[352637052,1739212245781,-500.0,0.00011917,2]
[352637053,1739212245792,-500.0,0.00011917,2]
[352637054,1739212245802,-500.0,0.00011917,2]
[352637055,1739212245812,-500.0,0.00011917,2]
[352637056,1739212245821,-500.0,0.00011917,2]
[352637057,1739212245831,-500.0,0.00011917,2]
[352637058,1739212245841,-500.0,0.00011917,2]
[352637059,1739212245851,-13922.83,0.00011917,2]
[352637060,1739212245861,-500.0,0.00011917,2]
[352637061,1739212245871,-804.1,0.00011917,2]
[352637062,1739212245880,-500.0,0.00011917,2]
[352637063,1739212245890,-590.4,0.00011917,2]
[352637064,1739212245900,-5523.16,0.00011917,2]
[352637065,1739212245909,-1492.81,0.00011917,2]
[352637066,1739212245919,-500.0,0.00011917,2]
[352637067,1739212245929,-500.0,0.00011917,2]
[352637068,1739212245938,-519.17,0.00011917,2]
[352637069,1739212245949,-500.0,0.00011917,2]
[352637070,1739212245959,-790.7,0.00011917,2]
[352637071,1739212245968,-1960.12,0.00011917,2]
[352637072,1739212245978,-500.0,0.00011917,2]
[352637073,1739212245987,-500.0,0.00011917,2]
[352637074,1739212246092,-500.0,0.00011917,2]
[352637076,1739212246103,-7568.36,0.00011917,2]
[352637077,1739212246113,-500.0,0.00011917,2]
[352637078,1739212246123,-819.41,0.00011917,2]
[352637079,1739212246132,-745.93,0.00011917,2]
[352637080,1739212246143,-500.0,0.00011917,2]
[352637081,1739212246152,-500.0,0.00011917,2]
[352637082,1739212246162,-694.34,0.00011917,2]
[352637083,1739212246172,-1287.45,0.00011917,2]
[352637084,1739212246181,-500.0,0.00011917,2]
[352637085,1739212246190,-1421.92,0.00011917,2]
[352637086,1739212246200,-725.42,0.00011917,2]
[352637087,1739212246210,-519.1,0.00011917,2]
[352637088,1739212246219,-3345.59,0.00011917,2]
[352637090,1739212246229,-500.0,0.00011917,2]
[352637091,1739212246238,-246.26,0.00011917,2]
[352637092,1739212246247,-1562.27,0.00011917,2]
[352637093,1739212246257,-597.04,0.00011917,2]
[352637094,1739212246267,-1519.61,0.00011917,2]
[352637095,1739212246277,-304.93,0.00011917,2]
[352637096,1739212246286,-1134.73,0.00011917,2]
[352637097,1739212246297,-1000.0,0.00012007,2]
[352637098,1739212246307,-420.0,0.0001204,2]
[352637099,1739212246316,-500.0,0.00012053,2]
[352637100,1739212246326,-500.0,0.00012054,2]
[352637101,1739212246335,-500.0,0.00012054,2]
[352637102,1739212246345,-500.0,0.00012054,2]
[352637103,1739212246355,-500.0,0.00012054,2]
[352637104,1739212246365,-629.32,0.00012054,2]
[352637105,1739212246374,-500.0,0.00012054,2]
[352637106,1739212246384,-590.24,0.00012054,2]
[352637107,1739212246393,-500.0,0.00012054,2]
[352637108,1739212246403,-500.0,0.00012054,2]
[352637109,1739212246413,-500.0,0.00012054,2]
[352637111,1739212246423,-500.0,0.00012054,2]
[352637112,1739212246432,-13922.83,0.00012054,2]
[352637113,1739212246442,-500.0,0.00012054,2]
[352637114,1739212246451,-804.1,0.00012054,2]
[352637115,1739212246461,-500.0,0.00012054,2]
[352637116,1739212246471,-590.4,0.00012054,2]
[352637118,1739212246480,-5523.16,0.00012054,2]
[352637119,1739212246490,-1492.81,0.00012054,2]
[352637121,1739212246500,-500.0,0.00012054,2]
[352637122,1739212246509,-500.0,0.00012054,2]
[352637123,1739212246519,-519.17,0.00012054,2]
[352637124,1739212246530,-500.0,0.00012054,2]
[352637125,1739212246540,-1960.12,0.00012054,2]
[352637126,1739212246555,-790.7,0.00012054,2]
[352637127,1739212246569,-500.0,0.00012054,2]
[352637128,1739212246579,-500.0,0.00012054,2]
[352637129,1739212246590,-500.0,0.00012054,2]
[352637131,1739212246600,-7568.36,0.00012054,2]
[352637132,1739212246610,-218.14002327,0.00012054,2]
[352637133,1739212246620,-819.41,0.00012054,2]
[352637134,1739212246630,-745.93,0.00012054,2]
[352637135,1739212246640,-500.0,0.00012054,2]
[352637136,1739212246650,-500.0,0.00012054,2]
[352637137,1739212246660,-694.34,0.00012054,2]
[352637138,1739212246670,-1287.45,0.00012054,2]
[352637139,1739212246680,-500.0,0.00012054,2]
[352637140,1739212246689,-1421.92,0.00012054,2]
[352637141,1739212246700,-725.42,0.00012054,2]
[352637142,1739212246710,-519.1,0.00012054,2]
[352637143,1739212246720,-3345.59,0.00012054,2]
[352637144,1739212246730,-500.0,0.00012054,2]
[352637145,1739212246740,-1562.27,0.00012054,2]
[352637146,1739212246751,-597.04,0.00012054,2]
[352637147,1739212246760,-1519.61,0.00012054,2]
[352637148,1739212246770,-1134.73,0.00012054,2]
[352637149,1739212246780,-151.0,0.000121,2]
[352637150,1739212246790,-500.0,0.00012191,2]
[352637151,1739212246805,-500.0,0.00012191,2]
[352637152,1739212246815,-500.0,0.00012191,2]
[352637153,1739212246824,-500.0,0.00012191,2]
[352637154,1739212246834,-629.32,0.00012191,2]
[352637155,1739212246843,-404.82,0.00012191,2]
[352637156,1739212246853,-500.0,0.00012191,2]
[352637157,1739212246862,-500.0,0.00012191,2]
[352637158,1739212246871,-500.0,0.00012191,2]
[352637159,1739212246881,-13922.83,0.00012191,2]
[352637160,1739212246891,-376.71673314,0.00012191,2]
[352637161,1739212246900,-804.1,0.00012191,2]
[352637162,1739212246916,-500.0,0.00012191,2]
[352637163,1739212246932,-590.4,0.00012191,2]
[352637164,1739212246945,-5523.16,0.00012191,2]
[352637165,1739212246958,-1492.81,0.00012191,2]
[352637166,1739212246971,-500.0,0.00012191,2]
[352637167,1739212246985,-500.0,0.00012191,2]
[352637168,1739212247000,-519.17,0.00012191,2]
[352637169,1739212247014,-172.86,0.00012191,2]
[352637170,1739212247032,-1960.12,0.00012191,2]
[352637171,1739212247046,-790.7,0.00012191,2]
[352637172,1739212247058,-500.0,0.00012191,2]
[352637173,1739212247072,-311.67,0.00012191,2]
[352637174,1739212247087,-500.0,0.00012191,2]
[352637175,1739212247101,-7568.36,0.00012191,2]
[352637176,1739212247114,-819.41,0.00012191,2]
[352637177,1739212247125,-745.93,0.00012191,2]
[352637178,1739212247138,-490.24,0.00012191,2]
[352637179,1739212247151,-245.19,0.00012191,2]
[352637180,1739212247166,-694.34,0.00012191,2]
[352637181,1739212247180,-1287.45,0.00012191,2]
[352637182,1739212247194,-619.82,0.00012191,2]
[352637183,1739212247209,-1421.92,0.00012191,2]
[352637184,1739212247225,-725.42,0.00012191,2]
[352637185,1739212247236,-519.1,0.00012191,2]
[352637186,1739212247247,-3345.59,0.00012191,2]
[352637187,1739212247261,-500.0,0.00012191,2]
[352637188,1739212247276,-1562.27,0.00012191,2]
[352637189,1739212247290,-597.04,0.00012191,2]
[352637190,1739212247302,-1519.61,0.00012191,2]
[352637191,1739212247315,-1134.73,0.00012191,2]
[352637192,1739212247330,-151.0,0.000122,2]
[352637193,1739212247342,-151.0,0.000122,2]
[352637194,1739212247353,-1500.0,0.00012281,2]
[352637195,1739212247365,-500.0,0.00012328,2]
[352637196,1739212247377,-500.0,0.00012328,2]
[352637197,1739212247389,-500.0,0.00012328,2]
[352637198,1739212247402,-500.0,0.00012328,2]
[352637199,1739212247414,-629.32,0.00012328,2]
[352637200,1739212247427,-500.0,0.00012328,2]
[352637201,1739212247439,-500.0,0.00012328,2]
[352637202,1739212247452,-500.0,0.00012328,2]
[352637203,1739212247464,-13922.83,0.00012328,2]